fUSD/lending_fUSD_20240825
["ID","MTS","AMOUNT","RATE_DAILY","PERIOD"]
[335888620,1724572248941,-500.0,0.00010991,2]
[335888621,1724572248950,-500.0,0.00010991,2]
[335888622,1724572248959,-500.0,0.00010991,2]
[335888623,1724572248969,-500.0,0.00010991,2]
[335888624,1724572248979,-500.0,0.00010991,2]
[335888625,1724572248990,-590.17,0.00010991,2]
[335888626,1724572249000,-500.0,0.00010991,2]
[335888627,1724572249009,-500.0,0.00010991,2]
[335888628,1724572249019,-500.0,0.00010991,2]
[335888629,1724572249028,-500.0,0.00010991,2]
[335888630,1724572249038,-176.85357188,0.00010991,2]
[335888631,1724572249047,-500.0,0.00010991,2]
[335888632,1724572249058,-932.63,0.00010991,2]
[335888633,1724572249067,-500.0,0.00010991,2]
[335888634,1724572249077,-500.0,0.00010991,2]
[335888635,1724572249087,-500.0,0.00010991,2]
[335888636,1724572249096,-500.0,0.00010991,2]
[335888637,1724572249106,-500.0,0.00010991,2]
[335888638,1724572249116,-554.28,0.00010991,2]
[335888639,1724572249125,-1331.2,0.00010991,2]
[335888640,1724572249136,-500.0,0.00010991,2]
[335888641,1724572249145,-500.0,0.00010991,2]
[335888642,1724572249154,-500.0,0.00010991,2]
[335888643,1724572249164,-682.86,0.00010991,2]
[335888644,1724572249173,-500.0,0.00010991,2]
[335888645,1724572249182,-500.0,0.00010991,2]
[335888646,1724572249191,-500.0,0.00010991,2]
[335888647,1724572249201,-500.0,0.00010991,2]
[335888648,1724572249210,-500.0,0.00010991,2]
[335888649,1724572249219,-500.0,0.00010991,2]
[335888650,1724572249228,-500.0,0.00010991,2]
[335888651,1724572249237,-500.0,0.00010991,2]
[335888652,1724572249246,-500.0,0.00010991,2]
[335888653,1724572249255,-500.0,0.00010991,2]
[335888654,1724572249264,-500.0,0.00010991,2]
[335888655,1724572249274,-500.0,0.00010991,2]
[335888656,1724572249283,-723.02,0.00010991,2]
[335888657,1724572249292,-500.0,0.00010991,2]
[335888658,1724572249302,-500.0,0.00010991,2]
[335888659,1724572249311,-500.0,0.00010991,2]
[335888660,1724572249320,-523.81656551,0.00010991,2]
[335888661,1724572249330,-500.0,0.00010991,2]
[335888662,1724572249339,-500.0,0.00010991,2]
[335888663,1724572249349,-500.0,0.00010991,2]
[335888664,1724572249358,-500.0,0.00010991,2]
[335888665,1724572249367,-500.0,0.00010991,2]
[335888666,1724572249377,-500.0,0.00010991,2]
[335888667,1724572249387,-500.0,0.00010991,2]
[335888668,1724572249397,-151.0,0.00010991,2]
[335888669,1724572249406,-500.0,0.00010991,2]
[335888670,1724572249416,-151.0,0.00010991,2]
[335888671,1724572249426,-500.0,0.00010991,2]
[335888672,1724572249435,-500.0,0.00010991,2]
[335888673,1724572249444,-151.0,0.00010991,2]
[335888674,1724572249454,-151.0,0.00010991,2]
[335888675,1724572249463,-357.5072459,0.00010991,2]
[335888676,1724572249472,-500.0,0.00010991,2]
[335888677,1724572249482,-500.0,0.00010991,2]
[335888678,1724572249491,-500.0,0.00010991,2]
[335888679,1724572249500,-646.41534992,0.00010991,2]
[335888680,1724572249509,-500.0,0.00010991,2]
[335888681,1724572249518,-500.0,0.00010991,2]
[335888682,1724572249527,-508.07622634,0.00010991,2]
[335888683,1724572249537,-500.0,0.00010991,2]
[335888684,1724572249545,-500.0,0.00010991,2]
[335888685,1724572249555,-500.0,0.00010991,2]
[335888686,1724572249564,-500.0,0.00010991,2]
[335888687,1724572249573,-500.0,0.00010991,2]
[335888688,1724572249582,-500.0,0.00010991,2]
[335888689,1724572249591,-151.0,0.00010991,2]
[335888690,1724572249600,-248.9769409,0.00010991,2]
[335888691,1724572249609,-151.0,0.00010991,2]
[335888692,1724572249618,-500.0,0.00010991,2]
[335888693,1724572249627,-500.0,0.00010991,2]
[335888694,1724572249638,-500.0,0.00010991,2]
[335888695,1724572249646,-500.0,0.00010991,2]
[335888696,1724572249655,-500.0,0.00010991,2]
[335888697,1724572249665,-500.0,0.00010991,2]
[335888698,1724572249674,-500.0,0.00010991,2]
[335888699,1724572249683,-500.0,0.00010991,2]
[335888700,1724572249692,-500.0,0.00010991,2]
[335888701,1724572249701,-151.0,0.00010991,2]
[335888702,1724572249710,-500.0,0.00010991,2]
[335888703,1724572249719,-500.0,0.00010991,2]
[335888704,1724572249728,-500.0,0.00010991,2]
[335888705,1724572249737,-500.0,0.00010991,2]
[335888706,1724572249746,-500.0,0.00010991,2]
[335888707,1724572249755,-573.11,0.00010991,2]
[335888708,1724572249764,-500.0,0.00010991,2]
[335888709,1724572249773,-500.0,0.00010991,2]
[335888710,1724572249782,-500.0,0.00010991,2]
[335888711,1724572249791,-435.48266757,0.00010991,2]
[335888712,1724572249800,-500.0,0.00010991,2]
[335888713,1724572249812,-500.0,0.00010991,2]
[335888714,1724572249822,-500.0,0.00010991,2]
[335888715,1724572249831,-500.0,0.00010991,2]
[335888716,1724572249840,-512.91477854,0.00010991,2]
[335888717,1724572249849,-500.0,0.00010991,2]
[335888718,1724572249858,-500.0,0.00010991,2]
[335888719,1724572249868,-531.52,0.00010991,2]
[335888720,1724572249877,-500.0,0.00010991,2]
[335888721,1724572249890,-469.423657,0.00010991,2]
[335888722,1724572249900,-500.0,0.00010991,2]
[335888723,1724572249909,-500.0,0.00010991,2]
[335888724,1724572249919,-500.0,0.00010991,2]
[335888725,1724572249928,-640.09,0.00010991,2]
[335888726,1724572249938,-648.6,0.00010991,2]
[335888727,1724572249947,-152.47225,0.00010991,2]
[335888728,1724572249957,-500.0,0.00010991,2]
[335888729,1724572249967,-568.97,0.00010991,2]
[335888730,1724572249976,-500.0,0.00010991,2]
[335888731,1724572249986,-500.0,0.00010991,2]
[335888732,1724572249996,-500.0,0.00010991,2]
[335888733,1724572250007,-500.0,0.00010991,2]
[335888734,1724572250016,-500.0,0.00010991,2]
[335888735,1724572250025,-500.0,0.00010991,2]
[335888736,1724572250034,-520.56,0.00010991,2]
[335888737,1724572250044,-500.0,0.00010991,2]
[335888738,1724572250053,-500.0,0.00010991,2]
[335888739,1724572250062,-500.0,0.00010991,2]
[335888740,1724572250072,-500.0,0.00010991,2]
[335888741,1724572250081,-500.0,0.00010991,2]
[335888742,1724572250090,-1333.065331,0.00010991,2]
[335888743,1724572250100,-500.0,0.00010991,2]
[335888744,1724572250109,-500.0,0.00010991,2]
[335888745,1724572250119,-1333.065331,0.00010991,2]
[335888746,1724572250128,-500.0,0.00010991,2]
[335888747,1724572250139,-500.0,0.00010991,2]
[335888748,1724572250149,-500.0,0.00010991,2]
[335888749,1724572250158,-574.0,0.00010991,2]
[335888750,1724572250167,-551.68472936,0.00010991,2]
[335888751,1724572250177,-500.0,0.00010991,2]
[335888752,1724572250186,-500.0,0.00010991,2]
[335888753,1724572250196,-500.0,0.00010991,2]
[335888754,1724572250205,-500.0,0.00010991,2]
[335888755,1724572250214,-500.0,0.00010991,2]
[335888756,1724572250224,-625.78698633,0.00010991,2]
[335888757,1724572250233,-560.536717,0.00010991,2]
[335888758,1724572250243,-596.35,0.00010991,2]
[335888759,1724572250252,-500.0,0.00010991,2]
[335888760,1724572250262,-500.0,0.00010991,2]
[335888761,1724572250272,-668.93,0.00010991,2]
[335888762,1724572250282,-500.0,0.00010991,2]
[335888763,1724572250291,-500.0,0.00010991,2]
[335888764,1724572250301,-500.0,0.00010991,2]
[335888765,1724572250311,-500.0,0.00010991,2]
[335888766,1724572250321,-500.0,0.00010991,2]
[335888767,1724572250330,-393.32,0.00010991,2]
[335888768,1724572250340,-500.0,0.00010991,2]
[335888769,1724572250350,-500.0,0.00010991,2]
[335888770,1724572250360,-500.0,0.00010991,2]
[335888771,1724572250369,-500.0,0.00010991,2]
[335888772,1724572250379,-500.0,0.00010991,2]
[335888773,1724572250390,-500.0,0.00010991,2]
[335888774,1724572250399,-896.61,0.00010991,2]
[335888775,1724572250409,-500.0,0.00010991,2]
[335888776,1724572250418,-500.0,0.00010991,2]
[335888777,1724572250428,-500.0,0.00010991,2]
[335888778,1724572250437,-500.0,0.00010991,2]
[335888779,1724572250449,-500.0,0.00010991,2]
[335888780,1724572250458,-500.0,0.00010991,2]
[335888781,1724572250468,-500.0,0.00010991,2]
[335888782,1724572250478,-151.0,0.00010991,2]
[335888783,1724572250488,-573.953751,0.00010991,2]
[335888784,1724572250498,-500.0,0.00010991,2]
[335888785,1724572250507,-500.0,0.00010991,2]
[335888786,1724572250516,-151.0,0.00010991,2]
[335888787,1724572250526,-573.953751,0.00010991,2]
[335888788,1724572250536,-500.0,0.00010991,2]
[335888789,1724572250545,-500.0,0.00010991,2]
[335888790,1724572250554,-500.0,0.00010991,2]
[335888791,1724572250563,-500.0,0.00010991,2]
[335888792,1724572250573,-500.0,0.00010991,2]
[335888793,1724572250582,-176.78154781,0.00010991,2]
[335888794,1724572250592,-500.0,0.00010991,2]
[335888795,1724572250601,-500.0,0.00010991,2]
[335888796,1724572250611,-946.38,0.00010991,2]
[335888797,1724572250620,-534.89,0.00010991,2]
[335888798,1724572250629,-500.0,0.00010991,2]
[335888799,1724572250639,-500.0,0.00010991,2]
[335888800,1724572250648,-616.10153197,0.00010991,2]
[335888801,1724572250657,-500.0,0.00010991,2]
[335888802,1724572250670,-500.0,0.00010991,2]
[335888803,1724572250679,-500.0,0.00010991,2]
[335888804,1724572250689,-500.0,0.00010991,2]
[335888805,1724572250698,-500.0,0.00010991,2]
[335888806,1724572250708,-500.0,0.00010991,2]
[335888807,1724572250718,-500.0,0.00010991,2]
[335888808,1724572250727,-500.0,0.00010991,2]
[335888809,1724572250738,-500.0,0.00010991,2]
[335888810,1724572250747,-500.0,0.00010991,2]
[335888811,1724572250757,-500.0,0.00010991,2]
[335888812,1724572250766,-500.0,0.00010991,2]
[335888813,1724572250776,-614.628466,0.00010991,2]
[335888814,1724572250785,-500.0,0.00010991,2]
[335888815,1724572250795,-500.0,0.00010991,2]
[335888816,1724572250807,-500.0,0.00010991,2]
[335888817,1724572250818,-620.7,0.00010991,2]
[335888818,1724572250828,-500.0,0.00010991,2]
[335888819,1724572250838,-614.628466,0.00010991,2]
[335888820,1724572250848,-500.0,0.00010991,2]
[335888821,1724572250859,-500.0,0.00010991,2]
[335888822,1724572250868,-500.0,0.00010991,2]
[335888823,1724572250878,-500.0,0.00010991,2]
[335888824,1724572250890,-500.0,0.00010991,2]
[335888825,1724572250899,-208.52,0.00010991,2]
[335888826,1724572250908,-500.0,0.00010991,2]
[335888827,1724572250918,-532.47854403,0.00010991,2]
[335888828,1724572250928,-256.873907,0.00010991,2]
[335888829,1724572250937,-500.0,0.00010991,2]
[335888830,1724572250947,-500.0,0.00010991,2]
[335888831,1724572250957,-500.0,0.00010991,2]
[335888832,1724572250966,-506.16992203,0.00010991,2]
[335888833,1724572250975,-500.0,0.00010991,2]
[335888834,1724572250984,-500.0,0.00010991,2]
[335888835,1724572250995,-256.873907,0.00010991,2]
[335888836,1724572251004,-500.0,0.00010991,2]
[335888837,1724572251014,-329.45875902,0.00010991,2]
[335888838,1724572251022,-500.0,0.00010991,2]
[335888839,1724572251032,-500.0,0.00010991,2]
[335888840,1724572251041,-500.0,0.00010991,2]
[335888841,1724572251050,-500.0,0.00010991,2]
[335888842,1724572251059,-500.0,0.00010991,2]
[335888843,1724572251069,-253.529833,0.00010991,2]
[335888844,1724572251078,-151.0,0.00010991,2]
[335888845,1724572251088,-500.0,0.00010991,2]
[335888846,1724572251098,-500.0,0.00010991,2]
[335888847,1724572251108,-500.0,0.00010991,2]
[335888848,1724572251117,-167.395434,0.00010991,2]
[335888849,1724572251126,-671.22,0.00010991,2]
[335888850,1724572251138,-167.395434,0.00010991,2]
[335888851,1724572251152,-500.0,0.00010991,2]
[335888852,1724572251162,-550.90708673,0.00010991,2]
[335888853,1724572251171,-500.0,0.00010991,2]
[335888854,1724572251181,-151.0,0.00010991,2]
[335888855,1724572251191,-500.0,0.00010991,2]
[335888856,1724572251201,-500.0,0.00010991,2]
[335888857,1724572251210,-151.0,0.00010991,2]
[335888858,1724572251219,-500.0,0.00010991,2]
[335888859,1724572251229,-2238.583822,0.00010991,2]
[335888860,1724572251238,-500.0,0.00010991,2]
[335888861,1724572251248,-500.0,0.00010991,2]
[335888862,1724572251257,-500.0,0.00010991,2]
[335888863,1724572251267,-937.018259,0.00010991,2]
[335888864,1724572251276,-151.0,0.00010991,2]
[335888865,1724572251286,-500.0,0.00010991,2]
[335888866,1724572251295,-2238.583822,0.00010991,2]
[335888867,1724572251304,-511.99,0.00010991,2]
[335888868,1724572251314,-937.018259,0.00010991,2]
[335888869,1724572251473,-500.0,0.00010991,2]
[335888870,1724572251483,-500.0,0.00010991,2]
[335888871,1724572251493,-500.0,0.00010991,2]
[335888872,1724572251503,-500.0,0.00010991,2]
[335888873,1724572251513,-500.0,0.00010991,2]
[335888874,1724572251522,-500.0,0.00010991,2]
[335888875,1724572251531,-500.34181317,0.00010991,2]
[335888876,1724572251542,-736.12,0.00010991,2]
[335888877,1724572251552,-751.14,0.00010991,2]
[335888878,1724572251561,-500.0,0.00010991,2]
[335888879,1724572251570,-606.12,0.00010991,2]
[335888880,1724572251580,-500.0,0.00010991,2]
[335888881,1724572251589,-500.0,0.00010991,2]
[335888882,1724572251599,-509.69,0.00010991,2]
[335888883,1724572251608,-660.02,0.00010991,2]
[335888884,1724572251618,-151.329165,0.00010991,2]
[335888885,1724572251627,-497.750315,0.00010991,2]
[335888886,1724572251638,-500.0,0.00010991,2]
[335888887,1724572251647,-8500.0,0.00010991,2]
[335888888,1724572251656,-500.0,0.00010992,2]
[335888889,1724572251665,-500.0,0.00010992,2]
[335888890,1724572251675,-506.99,0.00010992,2]
[335888891,1724572251684,-852.92,0.00010992,2]
[335888892,1724572251694,-500.0,0.00010992,2]
[335888893,1724572251703,-500.0,0.00010992,2]
[335888894,1724572251713,-500.0,0.00010992,2]
[335888895,1724572251722,-500.0,0.00010992,2]
[335888896,1724572251731,-500.0,0.00010992,2]
[335888897,1724572251740,-250.38228889,0.00010992,2]
[335888898,1724572251750,-509.13277616,0.00010992,2]
[335888899,1724572251759,-500.0,0.00010992,2]
[335888900,1724572251769,-500.0,0.00010992,2]
[335888901,1724572251778,-500.0,0.00010992,2]
[335888902,1724572251787,-500.0,0.00010992,2]
[335888903,1724572251796,-500.0,0.00010992,2]
[335888904,1724572251806,-500.0,0.00010992,2]
[335888905,1724572251819,-846.63,0.00010992,2]
[335888906,1724572251828,-511.92464047,0.00010992,2]
[335888907,1724572251838,-500.0,0.00010992,2]
[335888908,1724572251847,-636.52,0.00010992,2]
[335888909,1724572251856,-500.0,0.00010992,2]
[335888910,1724572251865,-248.98049798,0.00010992,2]
[335888911,1724572251874,-505.04,0.00010992,2]
[335888912,1724572251885,-500.0,0.00010992,2]
[335888913,1724572251894,-500.0,0.00010992,2]
[335888914,1724572251904,-500.0,0.00010992,2]
[335888915,1724572251913,-500.0,0.00010992,2]
[335888916,1724572251922,-500.0,0.00010992,2]
[335888917,1724572251932,-500.0,0.00010992,2]
[335888918,1724572251942,-500.0,0.00010992,2]
[335888919,1724572251951,-500.0,0.00010992,2]
[335888920,1724572251960,-500.0,0.00010992,2]
[335888921,1724572251970,-500.0,0.00010992,2]
[335888922,1724572251980,-306.14757418,0.00010992,2]
[335888923,1724572251989,-500.0,0.00010992,2]
[335888924,1724572252000,-401.27916228,0.00010992,2]
[335888925,1724572252010,-500.0,0.00010992,2]
[335888926,1724572252019,-500.0,0.00010992,2]
[335888927,1724572252028,-221.84,0.00010992,2]
[335888928,1724572252037,-215.90861388,0.00010992,2]
[335888929,1724572252046,-456.13637782,0.00010992,2]
[335888930,1724572252055,-500.0,0.00010992,2]
[335888931,1724572252065,-500.0,0.00010992,2]
[335888932,1724572252075,-375.28578038,0.00010992,2]
[335888933,1724572252084,-373.95667871,0.00010992,2]
[335888934,1724572252094,-163.44212203,0.00010992,2]
[335888935,1724572252104,-500.0,0.00010992,2]
[335888936,1724572252113,-470.29334931,0.00010992,2]
[335888937,1724572252122,-500.0,0.00010992,2]
[335888938,1724572252131,-1052.35,0.00010992,2]
[335888939,1724572252141,-151.0,0.00010992,2]
[335888940,1724572252150,-151.0,0.00010992,2]
[335888941,1724572252159,-151.0,0.00010992,2]
[335888942,1724572252169,-151.0,0.00010992,2]
[335888943,1724572252178,-345.814486,0.00010992,2]
[335888944,1724572252188,-345.814486,0.00010992,2]
[335888945,1724572252197,-252.160416,0.00010992,2]
[335888946,1724572252207,-252.160416,0.00010992,2]
[335888947,1724572252216,-371.704447,0.00010992,2]
[335888948,1724572252226,-371.704447,0.00010992,2]
[335888949,1724572252235,-151.0,0.00010992,2]
[335888950,1724572252244,-151.0,0.00010992,2]
[335888951,1724572252254,-151.0,0.00010992,2]
[335888952,1724572252263,-500.0,0.00010992,2]
[335888953,1724572252272,-500.0,0.00010992,2]
[335888954,1724572252282,-500.0,0.00010992,2]
[335888955,1724572252291,-4172.17,0.00010992,2]
[335888956,1724572252300,-1561.652432,0.00010992,2]
[335888957,1724572252310,-1561.652432,0.00010992,2]
[335888958,1724572252319,-1810.3,0.00010992,2]
[335888959,1724572252329,-500.0,0.00010992,2]
[335888960,1724572252339,-304.137235,0.00010992,2]
[335888961,1724572252348,-151.0,0.00010992,2]
[335888962,1724572252357,-304.137235,0.00010992,2]
[335888963,1724572252367,-3085.7,0.00010992,2]
[335888964,1724572252376,-1742.056747,0.00010992,2]
[335888965,1724572252387,-1027.41788,0.00010992,2]
[335888966,1724572252396,-1156.54215,0.00010992,2]
[335888967,1724572252406,-159.72224,0.00010992,2]
[335888968,1724572252416,-500.0,0.00010992,2]
[335888969,1724572252425,-159.72224,0.00010992,2]
[335888970,1724572252434,-298.55,0.00010992,2]
[335888971,1724572252444,-1623.7,0.00010992,2]
[335888972,1724572252453,-500.0,0.00010992,2]
[335888973,1724572252463,-500.0,0.00010992,2]
[335888974,1724572252473,-500.0,0.00010992,2]
[335888975,1724572252483,-771.46,0.00010992,2]
[335888976,1724572252492,-1252.44,0.00010992,2]
[335888977,1724572252502,-500.0,0.00010992,2]
[335888978,1724572252512,-500.0,0.00010992,2]
[335888979,1724572252521,-716.95,0.00010992,2]
[335888980,1724572252530,-323.24,0.00010992,2]
[335888981,1724572252540,-510.06,0.00010992,2]
[335888982,1724572252550,-500.0,0.00010992,2]
[335888983,1724572252559,-773.82,0.00010992,2]
[335888984,1724572252568,-500.0,0.00010992,2]
[335888985,1724572252579,-647.06,0.00010992,2]
[335888986,1724572252588,-645.43,0.00010992,2]
[335888987,1724572252598,-500.0,0.00010992,2]
[335888988,1724572252607,-500.0,0.00010992,2]
[335888989,1724572252617,-500.0,0.00010992,2]
[335888990,1724572252626,-500.0,0.00010992,2]
[335888991,1724572252636,-500.0,0.00010992,2]
[335888992,1724572252645,-500.0,0.00010992,2]
[335888993,1724572252655,-785.3,0.00010992,2]
[335888994,1724572252665,-627.57,0.00010992,2]
[335888995,1724572252676,-1528.205432,0.00010992,2]
[335888996,1724572252685,-500.0,0.00010992,2]
[335888997,1724572252694,-676.058495,0.00010992,2]
[335888998,1724572252703,-865.33,0.00010992,2]
[335888999,1724572252712,-761.510172,0.00010992,2]
[335889000,1724572252721,-152.342171,0.00010992,2]
[335889001,1724572252731,-1055.59,0.00010992,2]
[335889002,1724572252740,-575.35,0.00010992,2]
[335889003,1724572252749,-167.395434,0.00010992,2]
[335889004,1724572252759,-1024.53,0.00010992,2]
[335889005,1724572252768,-167.395434,0.00010992,2]
[335889006,1724572252778,-3033.25,0.00010992,2]
[335889007,1724572252787,-937.018259,0.00010992,2]
[335889008,1724572252797,-2373.4,0.00010992,2]
[335889009,1724572252807,-930.83,0.00010992,2]
[335889010,1724572252820,-937.018259,0.00010992,2]
[335889011,1724572252830,-736.3,0.00010992,2]
[335889012,1724572252839,-288.16898,0.00010992,2]
[335889013,1724572252848,-288.16898,0.00010992,2]
[335889014,1724572252859,-1337.179753,0.00010992,2]
[335889015,1724572252868,-1014.087742,0.00010992,2]
[335889016,1724572252878,-2591.22,0.00010992,2]
[335889017,1724572252891,-569.83,0.00010992,2]
[335889018,1724572252900,-500.0,0.00010992,2]
[335889019,1724572252910,-1142.265258,0.00010992,2]
[335889020,1724572252919,-1563.22,0.00010992,2]
[335889021,1724572252929,-660.02,0.00010992,2]
[335889022,1724572252938,-500.0,0.00010992,2]
[335889023,1724572252947,-497.750315,0.00010992,2]
[335889024,1724572252957,-500.0,0.00010993,2]
[335889025,1724572252966,-200.0,0.00010993,2]
[335889026,1724572252975,-500.0,0.00010993,2]
[335889027,1724572252984,-500.0,0.00010993,2]
[335889028,1724572252993,-500.0,0.00010993,2]
[335889029,1724572253002,-500.0,0.00010993,2]
[335889030,1724572253011,-500.0,0.00010993,2]
[335889031,1724572253021,-1973.16,0.00010993,2]
[335889032,1724572253030,-411.98342254,0.00010993,2]
[335889033,1724572253039,-500.0,0.00010993,2]
[335889034,1724572253049,-500.0,0.00010993,2]
[335889035,1724572253058,-500.0,0.00010993,2]
[335889036,1724572253068,-500.0,0.00010993,2]
[335889037,1724572253078,-500.0,0.00010993,2]
[335889038,1724572253087,-500.0,0.00010993,2]
[335889039,1724572253097,-500.0,0.00010993,2]
[335889040,1724572253107,-500.0,0.00010993,2]
[335889041,1724572253116,-500.0,0.00010993,2]
[335889042,1724572253125,-500.0,0.00010993,2]
[335889043,1724572253134,-563.18585322,0.00010993,2]
[335889044,1724572253144,-1113.48,0.00010993,2]
[335889045,1724572253153,-500.0,0.00010993,2]
[335889046,1724572253162,-2114.51,0.00010993,2]
[335889047,1724572253172,-500.0,0.00010993,2]
[335889048,1724572253181,-2103.87,0.00010993,2]
[335889049,1724572253190,-841.35,0.00010993,2]
[335889050,1724572253199,-500.0,0.00010993,2]
[335889051,1724572253208,-230.61866733,0.00010993,2]
[335889052,1724572253218,-1755.18,0.00010993,2]
[335889053,1724572253227,-500.0,0.00010993,2]
[335889054,1724572253236,-504.27,0.00010993,2]
[335889055,1724572253246,-500.0,0.00010993,2]
[335889056,1724572253256,-500.0,0.00010993,2]
[335889057,1724572253265,-500.0,0.00010993,2]
[335889058,1724572253274,-500.0,0.00010993,2]
[335889059,1724572253284,-500.0,0.00010993,2]
[335889060,1724572253293,-428.03197643,0.00010993,2]
[335889061,1724572253303,-500.0,0.00010993,2]
[335889062,1724572253312,-500.0,0.00010993,2]
[335889063,1724572253322,-500.0,0.00010993,2]
[335889064,1724572253331,-500.0,0.00010993,2]
[335889065,1724572253341,-500.0,0.00010993,2]
[335889066,1724572253350,-500.0,0.00010993,2]
[335889067,1724572253359,-500.0,0.00010993,2]
[335889068,1724572253369,-500.0,0.00010993,2]
[335889069,1724572253378,-500.0,0.00010993,2]
[335889070,1724572253388,-500.0,0.00010993,2]
[335889071,1724572253397,-500.0,0.00010993,2]
[335889072,1724572253408,-500.0,0.00010993,2]
[335889073,1724572253418,-2000.0,0.00010993,2]
[335889074,1724572253429,-500.0,0.00010993,2]
[335889075,1724572253439,-200.0,0.00010993,2]
[335889076,1724572253449,-500.0,0.00010993,2]
[335889077,1724572253459,-500.0,0.00010993,2]
[335889078,1724572253469,-500.0,0.00010993,2]
[335889079,1724572253478,-500.0,0.00010993,2]
[335889080,1724572253488,-500.0,0.00010993,2]
[335889081,1724572253497,-500.0,0.00010993,2]
[335889082,1724572253507,-500.0,0.00010993,2]
[335889083,1724572253517,-500.0,0.00010993,2]
[335889084,1724572253526,-500.0,0.00010993,2]
[335889085,1724572253536,-500.0,0.00010993,2]
[335889086,1724572253546,-500.0,0.00010993,2]
[335889087,1724572253555,-500.0,0.00010993,2]
[335889088,1724572253564,-590.17,0.00010993,2]
[335889089,1724572253573,-697.72,0.00010993,2]
[335889090,1724572253582,-151.0,0.00010993,2]
[335889091,1724572253592,-1291.61,0.00010993,2]
[335889092,1724572253601,-500.0,0.00010993,2]
[335889093,1724572253610,-500.0,0.00010993,2]
[335889094,1724572253620,-2782.87,0.00010993,2]
[335889095,1724572253630,-529.59,0.00010993,2]
[335889096,1724572253640,-500.0,0.00010993,2]
[335889097,1724572253650,-500.0,0.00010993,2]
[335889098,1724572253659,-500.0,0.00010993,2]
[335889099,1724572253670,-500.0,0.00010993,2]
[335889100,1724572253683,-2945.67,0.00010993,2]
[335889101,1724572253692,-151.0,0.00010993,2]
[335889102,1724572253702,-500.0,0.00010993,2]
[335889103,1724572253712,-2077.53,0.00010993,2]
[335889104,1724572253721,-2772.51,0.00010993,2]
[335889105,1724572253731,-500.0,0.00010993,2]
[335889106,1724572253741,-1154.03,0.00010993,2]
[335889107,1724572253750,-500.0,0.00010993,2]
[335889108,1724572253760,-500.0,0.00010993,2]
[335889109,1724572253769,-500.0,0.00010993,2]
[335889110,1724572253778,-932.63,0.00010993,2]
[335889111,1724572253788,-1717.14,0.00010993,2]
[335889112,1724572253797,-151.0,0.00010993,2]
[335889113,1724572253807,-151.0,0.00010993,2]
[335889114,1724572253819,-500.0,0.00010993,2]
[335889115,1724572253828,-500.0,0.00010993,2]
[335889116,1724572253838,-500.0,0.00010993,2]
[335889117,1724572253848,-151.0,0.00010993,2]
[335889118,1724572253858,-500.0,0.00010993,2]
[335889119,1724572253868,-774.28,0.00010993,2]